bitfinex-derivatives/quotes_SOLF0:USTF0_20250109
["timestamp","ask_amount","ask_price","bid_price","bid_amount"]
[1736455025493,3.17122967,182.48,182.39,2.7417]
[1736455025804,20.65449087,182.47,182.35,2.7423]
[1736455026094,3.17122967,182.46,182.3,20.65449087]
[1736455026397,3.17122967,182.46,182.36,2.7421]
[1736455026594,6.38812967,182.45,182.31,20.65449087]
[1736455027294,3.2169,182.45,182.31,20.65449087]
[1736455027488,20.65449087,182.44,182.28,20.65449087]
[1736455028299,3.2169,182.45,182.31,20.65449087]
[1736455028595,3.2169,182.45,182.38,2.7418]
[1736455028787,3.2169,182.45,182.31,20.65449087]
[1736455029187,5.9578,182.45,182.31,20.65449087]
[1736455029396,3.2169,182.45,182.31,20.65449087]
[1736455029596,3.2169,182.45,182.34,20.65449087]
[1736455030597,1.5378,182.47,182.37,20.65449087]
[1736455031199,1.6181,182.51,182.37,20.65449087]
[1736455031393,1.6181,182.51,182.4,20.65449087]
[1736455031588,1.5676,182.54,182.4,20.65449087]
[1736455031792,1.5676,182.54,182.43,20.65449087]
[1736455032087,1.5676,182.54,182.4,20.65449087]
[1736455032398,1.5676,182.54,182.4,27.25449087]
[1736455032599,1.5676,182.54,182.44,2.741]
[1736455032801,1.5676,182.54,182.4,27.25449087]
[1736455033096,2.7397,182.53,182.44,2.741]
[1736455033290,20.65449087,182.52,182.37,20.65449087]
[1736455033696,2.7405,182.47,182.29,6.6]
[1736455033889,1.6107,182.46,182.31,20.65449087]
[1736455034108,25.00599087,182.46,182.37,2.742]
[1736455034301,25.00599087,182.46,182.31,20.65449087]
[1736455034302,1.6107,182.46,182.31,20.65449087]
[1736455034605,1.6107,182.46,182.37,20.65449087]
[1736455034995,1.6107,182.46,182.34,20.65449087]
[1736455035203,1.6107,182.46,182.37,20.65449087]
[1736455035500,20.65449087,182.52,182.37,20.65449087]
[1736455035702,4.3497,182.51,182.42,2.7412]
[1736455036801,1.6098,182.51,182.37,20.65449087]
[1736455036998,1.5676,182.54,182.4,20.65449087]
[1736455037196,1.5676,182.54,182.43,20.65449087]
[1736455037397,20.65449087,182.58,182.43,20.65449087]
[1736455037595,20.65449087,182.58,182.43,27.25449087]
[1736455037798,1.5196,182.59,182.51,2.7399]
[1736455037799,4.2584,182.59,182.51,2.7399]
[1736455037995,20.65449087,182.55,182.43,6.6]
[1736455038396,23.39389087,182.55,182.47,2.7405]
[1736455038596,20.65449087,182.55,182.43,6.6]
[1736455039308,22.24679087,182.58,182.43,27.25449087]
[1736455039606,24.98569087,182.58,182.5,2.7401]
[1736455039907,22.24679087,182.58,182.4,20.65449087]
[1736455040099,5.86684008,182.57,182.47,2.7405]
[1736455040295,3.12764008,182.57,182.43,20.65449087]
[1736455040595,2.739,182.57,182.49,2.7402]
[1736455041001,2.739,182.57,182.43,20.65449087]
[1736455041302,22.24679087,182.58,182.43,20.65449087]
[1736455041706,1.5196,182.59,182.54,2.7395]
[1736455041998,1.5196,182.59,182.49,20.65449087]
[1736455042298,1.5196,182.59,182.46,6.6]
[1736455042299,27.25449087,182.67,182.52,20.65449087]
[1736455042502,30.33999087,182.67,182.52,20.65449087]
[1736455042707,3.12806172,182.66,182.52,20.65449087]
[1736455043405,3.12806172,182.66,182.55,20.65449087]
[1736455043903,3.0855,182.67,182.55,20.65449087]
[1736455044101,3.0855,182.67,182.6,2.7386]
[1736455044404,3.0855,182.67,182.54,6.6]
[1736455045306,23.73999087,182.67,182.53,2.1059]
[1736455045496,20.65449087,182.64,182.49,20.65449087]
[1736455045704,20.65449087,182.64,182.46,20.65449087]
[1736455046207,2.7386,182.61,182.53,2.7396]
[1736455046910,2.7386,182.61,182.46,20.65449087]
[1736455046911,20.65449087,182.61,182.46,20.65449087]
[1736455047201,20.65449087,182.64,182.49,20.65449087]
[1736455047404,2.7383,182.63,182.55,2.7392]
[1736455047606,6.6,182.66,182.49,20.65449087]
[1736455047808,6.6,182.66,182.52,20.65449087]
[1736455048304,20.65449087,182.64,182.49,20.65449087]
[1736455048500,2.7386,182.6,182.53,2.7396]
[1736455048711,20.65449087,182.64,182.49,20.65449087]
[1736455049105,23.39259087,182.64,182.53,2.7396]
[1736455049412,6.6,182.66,182.52,20.65449087]
[1736455049706,23.73999087,182.67,182.52,20.65449087]
[1736455049906,3.13226316,182.65,182.55,20.65449087]
[1736455050306,3.0855,182.67,182.52,20.65449087]
[1736455050508,23.73999087,182.67,182.52,20.65449087]
[1736455050809,3.0855,182.67,182.55,20.65449087]
[1736455051205,3.13737898,182.66,182.52,20.65449087]
[1736455051710,3.13737898,182.65,182.56,2.7392]
[1736455052108,3.13737898,182.66,182.52,20.65449087]
[1736455052409,3.13737898,182.66,182.49,20.65449087]
[1736455052604,2.7381,182.64,182.56,2.7391]
[1736455052904,2.7381,182.64,182.52,20.65449087]
[1736455053116,3.13737898,182.66,182.61,2.7384]
[1736455053305,3.13737898,182.66,182.55,20.65449087]
[1736455053505,3.13737898,182.66,182.56,1.5331]
[1736455053709,3.13737898,182.66,182.61,2.7383]
[1736455053905,3.13737898,182.72,182.61,2.7383]
[1736455054210,20.65449087,182.67,182.56,1.5331]
[1736455054422,3.1183,182.66,182.53,0.442]
[1736455054633,20.65449087,182.64,182.49,22.18759087]
[1736455055506,2.7385,182.61,182.49,22.18759087]
[1736455055707,3.14375628,182.63,182.49,22.18759087]
[1736455056113,3.14375628,182.63,182.57,2.739]
[1736455056306,2.738,182.64,182.57,2.739]
[1736455056812,11.2997,182.66,182.49,22.18759087]
[1736455057015,11.2997,182.66,182.58,2.7389]
[1736455057316,4.6997,182.66,182.52,20.65449087]
[1736455057511,3.1516198,182.65,182.55,20.65449087]
[1736455058015,3.1516198,182.65,182.61,2.7384]
[1736455058215,1.5937,182.66,182.55,20.65449087]
[1736455058514,1.5937,182.66,182.61,2.7384]
[1736455058711,27.34165966,183.46,182.58,20.65449087]
[1736455058712,2.7368,182.72,182.58,20.65449087]
[1736455058916,2.7368,182.72,182.59,1.5584]
[1736455059112,20.65449087,182.73,182.59,1.5584]
[1736455059516,3.15468903,182.71,182.59,1.5584]
[1736455059915,2.7371,182.7,182.59,1.5584]
[1736455060313,2.7371,182.7,182.63,2.7381]
[1736455060613,3.15468903,182.72,182.63,2.7381]
[1736455060812,3.15468903,182.69,182.62,2.7383]
[1736455061015,3.15468903,182.69,182.55,28.69789087]
[1736455061216,3.15468903,182.69,182.55,6.6]
[1736455061217,20.65449087,182.67,182.55,6.6]
[1736455061414,2.7381,182.63,182.52,20.65449087]
[1736455062013,3.15468903,182.62,182.52,20.65449087]
[1736455062614,3.15468903,182.62,182.55,2.7393]
[1736455062813,3.15468903,182.62,182.52,20.65449087]
[1736455063910,3.15468903,182.61,182.56,2.7391]
[1736455064315,3.15468903,182.61,182.52,20.65449087]
[1736455064510,3.15468903,182.6,182.52,20.65449087]
[1736455064710,146.02232884,182.8,182.58,20.65449087]
[1736455064917,3.2302,182.73,182.61,20.65449087]
[1736455065116,3.2302,182.73,182.67,2.7374]
[1736455065315,3.2302,182.73,182.61,20.65449087]
[1736455065918,5.9669,182.73,182.61,20.65449087]
[1736455066521,3.2302,182.73,182.67,2.7374]
[1736455067220,5.967,182.73,182.64,2.7379]
[1736455067422,3.2302,182.73,182.61,20.65449087]
[1736455067719,3.2302,182.73,182.55,20.65449087]
[1736455067720,20.65449087,182.7,182.55,20.65449087]
[1736455068113,6.6,182.69,182.53,1.44]
[1736455068517,1.5191,182.68,182.59,2.7387]
[1736455068919,2.7377,182.66,182.59,2.7387]
[1736455069620,1.5191,182.68,182.55,20.65449087]
[1736455070430,1.0224,182.66,182.55,20.65449087]
[1736455071119,3.7601,182.66,182.59,2.7386]
[1736455071319,3.7601,182.66,182.55,20.65449087]
[1736455071720,3.7601,182.66,182.6,2.7386]
[1736455074659,2.7379,182.65,182.59,2.7386]
[1736455074827,1.0224,182.66,182.59,2.7386]
[1736455075025,1.0224,182.66,182.55,20.65449087]
[1736455075426,1.0224,182.66,182.58,20.65449087]
[1736455075822,1.0224,182.66,182.65,2.7378]
[1736455076030,1.0224,182.66,182.58,20.65449087]
[1736455076031,1.6088,182.73,182.64,20.65449087]
[1736455076226,1.5405,182.77,182.64,20.65449087]
[1736455076424,4.2765,182.77,182.67,20.65449087]
[1736455077221,4.2765,182.77,182.7,2.737]
[1736455077531,1.5405,182.77,182.7,2.737]
[1736455077727,2.7362,182.76,182.7,2.737]
[1736455078032,1.5405,182.77,182.68,2.7374]
[1736455078223,2.7365,182.74,182.68,2.7374]
[1736455078425,1.5405,182.77,182.68,2.7374]
[1736455078825,20.65449087,182.76,182.62,0.4397]
[1736455079429,2.7368,182.73,182.66,2.7377]
[1736455079630,20.65449087,182.76,182.61,20.65449087]
[1736455080324,20.65449087,182.73,182.58,27.23449087]
[1736455080527,20.65449087,182.76,182.61,20.65449087]
[1736455080925,2.7372,182.69,182.63,2.738]
[1736455081132,6.58,182.73,182.58,27.23449087]
[1736455081332,20.65449087,182.76,182.61,20.65449087]
[1736455081528,2.7365,182.74,182.68,2.7373]
[1736455082331,27.23449087,182.76,182.61,20.65449087]
[1736455082530,27.23449087,182.76,182.58,27.23449087]
[1736455083030,20.65449087,182.73,182.58,20.65449087]
[1736455084033,2.7372,182.7,182.64,2.7379]
[1736455084636,20.65449087,182.7,182.55,20.65449087]
[1736455084864,3.1781,182.69,182.52,20.65449087]
[1736455085035,3.1781,182.69,182.55,20.65449087]
[1736455085435,3.1781,182.69,182.61,2.7383]
[1736455085742,20.65449087,182.67,182.52,20.65449087]
[1736455085930,1.625,182.66,182.54,2.7394]
[1736455086135,20.65449087,182.64,182.5,1.6524]
[1736455086333,20.65449087,182.61,182.47,85.42]
[1736455086539,2.7394,182.55,182.49,2.7402]
[1736455086735,1.529,182.6,182.44,2.0925]
[1736455086736,20.65449087,182.58,182.44,1.6524]
[1736455087034,2.7395,182.54,182.47,2.7405]
[1736455087236,1.625,182.57,182.44,1.6524]
[1736455088426,6.04447583,182.56,182.44,1.6524]
[1736455089137,3.30517583,182.55,182.44,1.6524]
[1736455089329,20.65449087,182.52,182.39,0.4401]
[1736455089526,4.94347583,182.51,182.38,7.2560022]
[1736455089933,2.7402,182.5,182.38,7.2560022]
[1736455090635,3.30517583,182.49,182.42,2.7411]
[1736455090835,23.9596667,182.49,182.36,1.5957]
[1736455091144,2.7409,182.45,182.38,2.7419]
[1736455091835,3.1869,182.48,182.38,2.7419]
[1736455092029,3.30517583,182.44,182.38,2.7419]
[1736455092636,3.30517583,182.44,182.29,7.021]
[1736455092839,3.30517583,182.43,182.31,20.65449087]
[1736455093336,3.30517583,182.43,182.37,20.65449087]
[1736455093539,1.6565,182.48,182.37,20.65449087]
[1736455093736,1.6565,182.48,182.34,20.65449087]
[1736455093942,3.28533657,182.47,182.34,20.65449087]
[1736455094446,3.28533657,182.47,182.39,2.7417]
[1736455095038,3.28533657,182.46,182.39,2.7417]
[1736455095241,3.28533657,182.46,182.36,2.7421]
[1736455095445,3.28533657,182.46,182.31,20.65449087]
[1736455095640,20.65449087,182.44,182.3,1.5488]
[1736455096440,2.7413,182.42,182.34,2.7424]
[1736455096634,3.28533657,182.43,182.31,20.65449087]
[1736455096842,3.28533657,182.43,182.34,20.65449087]
[1736455097043,20.65449087,182.47,182.31,27.23449087]
[1736455097544,2.7412,182.43,182.36,2.7421]
[1736455097743,20.65449087,182.47,182.36,2.7421]
[1736455097944,3.27422728,182.46,182.36,2.7421]
[1736455098144,2.741,182.44,182.36,2.7421]
[1736455098647,3.27422728,182.43,182.36,2.7421]
[1736455098846,3.27422728,182.43,182.37,2.742]
[1736455099042,3.27422728,182.43,182.31,27.23449087]
[1736455099043,2.7406,182.47,182.34,20.65449087]
[1736455099250,1.6565,182.48,182.34,20.65449087]
[1736455099444,1.6565,182.48,182.31,6.58]
[1736455099445,4.397,182.48,182.05,69.99126993]
[1736455099643,20.65449087,182.44,182.29,20.65449087]
[1736455099848,20.65449087,182.44,182.3,2.1073]
[1736455100246,20.65449087,182.41,182.2,50.33404664]
[1736455100440,3.1414,182.4,182.24,20.65449087]
[1736455101246,1.5677,182.39,182.24,20.65449087]
[1736455101842,2.742,182.37,182.3,2.743]
[1736455102147,20.65449087,182.38,182.24,20.65449087]
[1736455102346,2.7424,182.35,182.28,2.7434]
[1736455102556,20.65449087,182.38,182.21,22.76179087]
[1736455102948,20.65449087,182.38,182.26,68.34352846]
[1736455102949,2.7426,182.34,182.26,68.34352846]
[1736455103152,20.65449087,182.38,182.26,68.34352846]
[1736455103740,20.65449087,182.35,182.26,65.59992846]
[1736455104051,2.743,182.31,182.26,65.59992846]
[1736455104239,20.65449087,182.35,182.26,65.59992846]
[1736455104438,20.65449087,182.35,182.26,68.34362846]
[1736455104844,20.65449087,182.35,182.26,65.59992846]
[1736455105042,2.7426,182.34,182.27,2.7435]
[1736455105450,2.7427,182.33,182.27,2.7435]
[1736455106045,2.7427,182.33,182.28,2.7434]
[1736455106246,20.65449087,182.35,182.26,65.59992846]
[1736455106946,3.25197368,182.34,182.26,65.59992846]
[1736455107848,27.23449087,182.35,182.26,65.59992846]
[1736455108947,2.7427,182.33,182.26,65.59992846]
[1736455109147,27.23449087,182.35,182.26,68.34362846]
[1736455109548,27.23449087,182.35,182.26,63.09612846]
[1736455109778,37.08449087,182.27,182.06,1.9842]
[1736455109952,20.65449087,182.22,182.07,1.0086805]
[1736455110152,20.65449087,182.25,182.08,20.65449087]
[1736455110849,2.7445,182.21,182.12,2.7458]
[1736455111061,20.65449087,182.22,182.08,20.65449087]
[1736455111351,20.65449087,182.19,182.06,1.9842]
[1736455111550,2.7452,182.16,182.06,1.9842]
[1736455111751,6.6,182.18,182.06,1.9842]
[1736455111951,6.6,182.18,181.98,20.65449087]
[1736455111952,2.7455,182.15,181.98,2.7479]
[1736455112254,27.25449087,182.16,181.99,4.7494]
[1736455112454,23.40029087,182.12,182.03,2.7471]
[1736455112655,20.65449087,182.12,181.99,4.7494]
[1736455113450,3.47459579,182.11,181.99,4.7494]
[1736455113648,3.47459579,182.11,182.03,2.7471]
[1736455113954,3.47459579,182.1,182.03,2.7471]
[1736455114257,6.22079579,182.1,182.01,2.7473]
[1736455114566,3.47459579,182.09,181.99,4.7494]
[1736455114855,3.47459579,182.08,181.99,4.7494]
[1736455115453,3.47459579,182.07,182.01,2.7475]
[1736455115653,3.47459579,182.07,181.99,1.6332]
[1736455116656,6.6,182.14,181.99,1.6332]
[1736455116853,3.2691,182.15,181.99,1.6332]
[1736455117057,20.65449087,182.16,182.01,20.65449087]
[1736455117251,8.98436373,182.14,182.04,20.65449087]
[1736455117451,8.98436373,182.14,182.05,3.1549]
[1736455117858,2.7449,182.18,182.05,3.1549]
[1736455118658,8.98358516,182.17,182.05,3.1549]
[1736455119060,8.98358516,182.16,182.05,3.1549]
[1736455119658,3.45522506,182.15,182.05,3.1549]
[1736455119859,3.45522506,182.15,182.09,2.7461]
[1736455120065,3.45522506,182.15,182.05,3.1549]
[1736455120561,3.45522506,182.15,182.07,20.65449087]
[1736455120755,3.45522506,182.14,182.08,1.6004]
[1736455121056,0.94772506,182.14,182.08,1.6004]
[1736455121258,20.65449087,182.22,182.08,1.6004]
[1736455121761,5.46049266,182.21,182.08,1.6004]
[1736455122362,20.65449087,182.19,182.08,1.6004]
[1736455122565,2.7454,182.15,182.08,4.3468]
[1736455122767,20.65449087,182.16,182.08,4.3468]
[1736455123160,23.39979087,182.16,182.08,4.3468]
[1736455123362,20.65449087,182.16,182.06,2.7466]
[1736455123771,5.46806159,182.15,182.05,3.1549]
[1736455124371,23.39929087,182.19,182.09,2.7462]
[1736455124573,20.65449087,182.19,182.05,3.1549]
[1736455124967,20.65449087,182.19,182.12,2.7458]
[1736455125167,20.65449087,182.22,182.07,20.65449087]
[1736455125374,5.46583684,182.18,182.07,20.65449087]
[1736455125569,5.46583684,182.18,182.14,2.7455]
[1736455126075,5.46583684,182.17,182.01,20.65449087]
[1736455126369,5.46583684,182.17,182.06,3.1148]
[1736455126571,5.46583684,182.17,182.12,2.7457]
[1736455126771,5.46583684,182.16,182.12,2.7457]
[1736455127374,5.46583684,182.15,182.12,2.7457]
[1736455127674,5.46583684,182.21,182.12,2.7457]
[1736455128075,2.7447,182.19,182.12,2.7457]
[1736455128770,8.21033684,182.21,182.11,2.7459]
[1736455128967,5.46583684,182.21,182.07,22.25009087]
[1736455129171,5.46583684,182.18,182.07,22.25009087]
[1736455129774,5.46583684,182.17,182.07,22.25009087]
[1736455130494,5.46583684,182.16,182.07,22.25009087]
[1736455131072,20.65449087,182.15,181.89,85.56]
[1736455131276,20.65449087,182.15,181.99,22.21839087]
[1736455131477,26.12032771,182.15,182.0,1.00906441]
[1736455131869,2.7457,182.13,182.0,1.00906441]
[1736455132072,5.46583684,182.12,182.0,1.00906441]
[1736455132773,5.46583684,182.12,182.02,20.65449087]
[1736455133078,5.46583684,182.12,182.03,1.00906441]
[1736455133388,5.46583684,182.11,181.9,50.40932392]
[1736455133677,5.46583684,182.11,181.99,1.6345]
[1736455133867,2.7462,182.1,182.03,2.7471]
[1736455134174,8.90110314,182.1,182.03,2.7471]
[1736455134375,8.90110314,182.1,181.99,1.6345]
[1736455134679,2.7464,182.09,182.02,2.7473]
[1736455134869,8.90110314,182.1,182.02,2.7473]
[1736455135083,8.90110314,182.09,182.02,2.7473]
[1736455135671,8.90110314,182.08,182.02,2.7473]
[1736455135878,8.90110314,182.08,182.05,2.7468]
[1736455136178,8.90110314,182.08,182.02,20.65449087]
[1736455136383,20.65449087,182.21,182.05,20.65449087]
[1736455136575,6.58,182.2,182.06,1.6449]
[1736455136877,27.23449087,182.21,182.06,1.6449]
[1736455137077,2.7452,182.16,182.09,2.7462]
[1736455137277,2.7452,182.16,182.06,1.6449]
[1736455137478,27.23449087,182.21,182.06,1.6449]
[1736455138174,2.7452,182.17,182.1,2.7461]
[1736455138379,20.65449087,182.18,182.06,1.6449]
[1736455138772,2.7456,182.14,182.08,2.7464]
[1736455139079,2.7456,182.14,182.06,1.6449]
[1736455139080,20.65449087,182.18,182.06,1.6449]
[1736455139779,2.7457,182.13,182.02,20.65449087]
[1736455139978,2.7457,182.13,182.0,1.5237]
[1736455140277,2.7457,182.13,182.07,2.7465]
[1736455140478,20.65449087,182.18,182.0,1.5237]
[1736455140680,27.23449087,182.18,182.03,20.65449087]
[1736455140987,20.65449087,182.18,182.03,20.65449087]
[1736455141279,3.2176,182.24,182.13,20.65449087]
[1736455141477,107.29758619,182.28,182.14,3.0589]
[1736455141679,107.29758619,182.28,182.14,4.6435]
[1736455141876,2.7437,182.26,182.19,2.7447]
[1736455142582,2.7439,182.25,182.18,2.7449]
[1736455142777,20.65449087,182.25,182.14,4.6435]
[1736455142982,2.7445,182.21,182.14,1.5237]
[1736455143183,20.65449087,182.25,182.14,1.5237]
[1736455144279,2.7441,182.24,182.17,2.745]
[1736455144678,20.65449087,182.25,182.14,1.5237]
[1736455144874,2.7442,182.23,182.17,2.745]
[1736455145074,20.65449087,182.25,182.14,1.5237]
[1736455145580,20.65449087,182.22,182.14,1.5237]
[1736455146082,20.65449087,182.22,182.08,1.619]
[1736455146274,20.65449087,182.22,182.09,1.6282]
[1736455147078,2.7446,182.2,182.13,2.7456]
[1736455147780,2.7446,182.2,182.14,2.7455]
[1736455148182,2.7445,182.21,182.14,2.7455]
[1736455148688,3.34474991,182.2,182.15,2.7454]
[1736455149101,3.34474991,182.2,182.1,20.65449087]
[1736455149286,3.34474991,182.19,182.1,20.65449087]
[1736455149685,3.34474991,182.18,182.16,2.7451]
[1736455150087,3.34474991,182.17,182.16,2.7451]
[1736455150481,3.34474991,182.17,182.1,20.65449087]
[1736455150685,3.34474991,182.17,182.09,1.6282]
[1736455151083,3.34474991,182.17,182.13,2.7455]
[1736455151288,3.34474991,182.17,182.09,1.6282]
[1736455151693,3.34474991,182.16,182.09,1.6282]
[1736455152289,3.34474991,182.16,182.15,2.7453]
[1736455152487,3.34474991,182.16,182.09,1.6282]
[1736455152488,1.583,182.24,182.1,20.65449087]
[1736455152992,2.744,182.24,182.1,20.65449087]
[1736455153205,3.35805956,182.23,182.1,20.65449087]
[1736455153386,3.35805956,182.23,182.13,2.7455]
[1736455153585,3.35805956,182.22,182.1,20.65449087]
[1736455153888,3.35805956,182.21,182.1,20.65449087]
[1736455154597,3.35805956,182.21,182.2,2.7446]
[1736455154800,10.24773654,182.29,182.16,20.65449087]
[1736455155093,3.36285899,182.28,182.24,2.7439]
[1736455155289,3.36285899,182.28,182.17,1.5856]
[1736455155601,3.36285899,182.28,182.22,20.65449087]
[1736455155987,3.36285899,182.27,182.22,20.65449087]
[1736455156198,1.5102,182.36,182.23,1.6116]
[1736455156491,20.65449087,182.43,182.28,20.65449087]
[1736455156693,3.1575,182.45,182.29,1.5856]
[1736455156891,3.1575,182.45,182.3,6.58]
[1736455157090,20.65449087,182.43,182.3,6.58]
[1736455157288,20.65449087,182.43,182.35,2.7423]
[1736455157595,20.65449087,182.43,182.3,6.58]
[1736455157891,20.65449087,182.43,182.29,1.5856]
[1736455158089,20.65449087,182.43,182.29,8.1656]
[1736455158284,23.39569087,182.43,182.34,2.7424]
[1736455158892,2.7416,182.41,182.32,2.7427]
[1736455159288,2.7416,182.41,182.28,20.65449087]
[1736455159289,20.65449087,182.4,182.25,20.65449087]
[1736455159505,2.7422,182.36,182.28,2.7433]
[1736455159689,20.65449087,182.37,182.26,6.58]
[1736455159988,2.7424,182.35,182.27,2.7435]
[1736455160991,20.65449087,182.37,182.28,2.7434]
[1736455160992,2.7422,182.36,182.28,2.7434]
[1736455161393,20.65449087,182.37,182.25,6.58]
[1736455162496,20.65449087,182.37,182.3,2.7431]
[1736455162698,20.65449087,182.37,182.25,6.58]
[1736455163292,20.65449087,182.34,182.23,1.6226]
[1736455164193,1.5093,182.35,182.23,1.6226]
[1736455164588,1.5093,182.35,182.22,20.65449087]
[1736455164589,20.65449087,182.34,182.2,6.56]
[1736455166697,20.65449087,182.34,182.19,8.81072965]
[1736455166904,20.65449087,182.28,182.13,20.65449087]
[1736455167097,3.2808,182.27,182.13,6.56]
[1736455167302,20.65449087,182.22,182.1,4.7913]
[1736455167602,20.65449087,182.25,182.1,25.44579087]
[1736455168503,20.65449087,182.25,182.1,3.216]
[1736455168701,20.65449087,182.22,182.1,3.216]
[1736455168896,20.65449087,182.22,182.12,2.7458]
[1736455169299,3.21385553,182.21,182.1,1.5682]
[1736455169498,5.95835553,182.21,182.13,2.7456]
[1736455169695,3.21385553,182.21,182.1,1.5682]
[1736455169899,20.65449087,182.19,182.06,1.6478]
[1736455170101,1.5113,182.18,182.06,1.6478]
[1736455170505,1.6095,182.17,182.06,1.6478]
[1736455170709,1.6095,182.17,182.11,2.7459]
[1736455171201,1.6095,182.17,182.06,1.6478]
[1736455171404,1.6095,182.17,182.1,2.7461]
[1736455172209,1.6095,182.17,182.07,2.7464]
[1736455172210,22.26399087,182.17,182.07,2.7464]
[1736455172408,22.26399087,182.17,182.04,85.6]
[1736455172799,22.26399087,182.17,182.06,2.7466]
[1736455173007,3.21515832,182.16,182.04,85.6]
[1736455173209,5.96035832,182.16,182.04,85.6]
[1736455173405,5.96035832,182.16,182.08,2.7463]
[1736455173604,2.7452,182.16,182.08,2.7463]
[1736455174318,25.00909087,182.17,182.09,2.7461]
[1736455174511,22.26399087,182.17,182.04,85.6]
[1736455175046,22.26399087,182.17,182.11,2.7458]
[1736455175214,1.6095,182.17,182.04,106.25449087]
[1736455175507,23.39859087,182.23,182.07,20.65449087]
[1736455175710,26.65249087,182.23,182.08,1.6033]
[1736455176008,23.90839087,182.23,182.16,2.7452]
[1736455176805,23.90839087,182.23,182.1,6.56]
[1736455178109,26.65259087,182.23,182.1,6.56]
[1736455178909,5.9981,182.23,182.1,27.21449087]
[1736455179211,1.6644,182.23,182.13,20.65449087]
[1736455179705,3.0876,182.28,182.13,20.65449087]
[1736455180008,4.6983,182.28,182.16,20.65449087]
[1736455180231,4.6983,182.28,182.23,2.7441]
[1736455180409,4.6983,182.28,182.18,6.56]
[1736455180608,20.65449087,182.26,182.14,6.56]
[1736455181008,4.6983,182.28,182.15,20.65449087]
[1736455181210,3.21890976,182.25,182.15,20.65449087]
[1736455181512,3.21890976,182.25,182.16,1.5499]
[1736455181914,3.1174,182.28,182.16,1.5499]
[1736455182409,3.1174,182.28,182.18,20.65449087]
[1736455182609,3.2230994,182.27,182.18,20.65449087]
[1736455183212,3.2230994,182.27,182.23,2.7441]
[1736455183414,3.1174,182.28,182.23,2.7441]
[1736455184601,5.4812,182.47,182.18,20.65449087]
[1736455184806,5.4812,182.47,182.16,1.5499]
[1736455184807,3.224815,182.27,182.21,20.65449087]
[1736455185113,3.224815,182.27,182.19,1.663]
[1736455185114,1.5e-05,182.27,182.24,20.65449087]
[1736455185312,1.5e-05,182.27,182.26,2.7437]
[1736455185508,20.65449087,182.43,182.25,1.5545]
[1736455185708,20.65449087,182.43,182.28,20.65449087]
[1736455186006,20.65449087,182.43,182.29,1.663]
[1736455186211,20.65449087,182.43,182.3,6.56]
[1736455186434,3.2744,182.45,182.31,20.65449087]
[1736455187004,3.2744,182.45,182.34,20.65449087]
[1736455187512,3.2744,182.45,182.39,2.7417]
[1736455187710,3.2744,182.45,182.34,20.65449087]
[1736455188211,1.6507,182.45,182.34,20.65449087]
[1736455188413,20.65449087,182.52,182.37,20.65449087]
[1736455188606,20.65449087,182.52,182.38,6.56]
[1736455188803,4.6642,182.54,182.4,20.65449087]
[1736455189013,4.6642,182.54,182.46,2.7407]
[1736455189205,4.6642,182.54,182.43,20.65449087]
[1736455189512,20.65449087,182.58,182.43,20.65449087]
[1736455189714,25.31869087,182.61,182.44,1.6559]
[1736455190308,25.31869087,182.61,182.51,2.7398]
[1736455190309,2.7387,182.6,182.51,2.7398]
[1736455190815,25.31869087,182.61,182.44,1.6559]
[1736455190816,20.65449087,182.58,182.44,1.6559]
[1736455191004,20.65449087,182.55,182.41,3.2384]
[1736455191204,20.65449087,182.58,182.43,20.65449087]
[1736455192913,23.39339087,182.58,182.49,2.7402]
[1736455193112,20.65449087,182.58,182.43,20.65449087]
[1736455193715,20.65449087,182.58,182.49,2.7402]
[1736455193918,20.65449087,182.58,182.43,20.65449087]
[1736455194111,2.7388,182.59,182.43,20.65449087]
[1736455194529,25.31869087,182.61,182.46,20.65449087]
[1736455194718,25.31869087,182.61,182.47,1.6502]
[1736455194906,25.31869087,182.61,182.48,6.54]
[1736455195515,4.6642,182.61,182.48,6.54]
[1736455195919,20.65449087,182.58,182.43,20.65449087]
[1736455196123,20.65449087,182.58,182.41,3.2384]
[1736455196410,20.65449087,182.58,182.43,20.65449087]
[1736455196816,20.65449087,182.58,182.47,2.7405]